[Event "Mitropa Cup Women 2024"]
[Site "Apolda"]
[Date "2024.02.15"]
[Round "1.8"]
[White "Karacsonyi, Kata"]
[Black "Sekova, Olivia"]
[Result "1-0"]
[ECO "B56"]
[WhiteElo "2087"]
[BlackElo "2054"]
[Annotator "NA RC"]
[PlyCount "74"]
[EventDate "2024.02.15"]
[EventType "team-tourn"]
[EventCountry "GER"]
[SourceTitle "playchess.com"]
[Source "ChessBase"]
[SourceQuality "1"]
[WhiteTeam "Hungary"]
[BlackTeam "Slovakia"]
[WhiteTeamCountry "HUN"]
[BlackTeamCountry "SVK"]
[TimeControl "40/5400+30:1800+30"]

1. e4 {[%emt 0:00:03]} c5 {[%emt 0:00:13]} 2. Nf3 {[%emt 0:00:11]} d6 {[%emt 0:00:18]} 3. d4 {[%emt 0:00:41]} cxd4 {[%emt 0:00:09]} 4. Nxd4 {[%emt 0:00:05]} Nf6 {[%emt 0:00:12]} 5. Nc3 {[%emt 0:00:11]} Nc6 {[%emt 0:00:27]} 6. f3 {[%emt 0:05:00]} e5 {[%emt 0:01:17]} 7. Nb3 {[%emt 0:00:04]} Be7 {[%emt 0:02:33]} 8. Be3 {[%emt 0:00:16]} O-O {[%emt 0:00:16]} 9. Qd2 {[%emt 0:08:18]} a5 {[%emt 0:04:47]} 10. Na4 {[%emt 0:09:21]} Be6 {[%emt 0:14:58]} 11. Nb6 {[%emt 0:07:39]} Rb8 {[%emt 0:09:24]} 12. O-O-O {[%emt 0:14:39]} a4 {[%emt 0:04:16]} 13. Nxa4 {[%emt 0:03:44]} b5 {[%emt 0:06:45]} 14. Nc3 {[%emt 0:00:27]} Bxb3 {[%emt 0:08:27]} 15. cxb3 {[%emt 0:08:55]} Qa5 {[%emt 0:01:56]} 16. Kb1 {[%emt 0:01:21]} b4 {[%emt 0:05:50]} 17. Na4 {[%emt 0:01:07]} Rfc8 {[%emt 0:14:01]} 18. g4 {[%emt 0:03:51]} Nd7 {[%emt 0:02:11]} 19. Bc4 {[%emt 0:04:51]} Nd4 {[%emt 0:09:16]} 20. Bxd4 {[%emt 0:03:51]} exd4 {[%emt 0:02:25]} 21. Qxd4 {[%emt 0:02:30]} Nc5 {[%emt 0:03:41]} 22. Qd5 {[%emt 0:04:57]} Rf8 {[%emt 0:01:02]} 23. e5 {[%emt 0:06:02]} Rbd8 {[%emt 0:01:34]} 24. Nxc5 {[%emt 0:06:32]} dxc5 {[%emt 0:00:32]} 25. Qb7 {[%emt 0:00:09]} Bg5 {[%emt 0:01:03]} 26. Rd7 {[%emt 0:02:28]} Rxd7 {[%emt 0:01:46]} 27. Qxd7 {[%emt 0:00:02]} Qa8 {[%emt 0:00:57]} 28. Qf5 {[%emt 0:01:16]} Qd8 {[%emt 0:00:36]} 29. f4 {[%emt 0:01:02]} Be7 {[%emt 0:00:26]} 30. Qe4 {[%emt 0:01:40]} Qd2 {[%emt 0:00:13]} 31. e6 {[%emt 0:02:27]} f6 {[%emt 0:01:44]} 32. Rf1 {[%emt 0:01:52]} Kh8 {[%emt 0:01:07]} 33. Qb7 {[%emt 0:00:50]} Qd6 {[%emt 0:01:55]} 34. Qd7 {[%emt 0:00:25]} f5 {[%emt 0:00:35]} 35. Qxd6 {[%emt 0:00:10]} Bxd6 {[%emt 0:00:03]} 36. Rd1 {[%emt 0:00:35]} Be7 {[%emt 0:00:46]} 37. Rd7 {[%emt 0:00:22]} Bf6 {[%emt 0:00:00]} 1-0

[Event "Mitropa Cup Women 2024"]
[Site "Apolda"]
[Date "2024.02.15"]
[Round "1.9"]
[White "Cvitan, Ena"]
[Black "Hakimifard, Ghazal"]
[Result "1/2-1/2"]
[ECO "E12"]
[WhiteElo "2242"]
[BlackElo "2243"]
[Annotator "TA"]
[PlyCount "96"]
[EventDate "2024.02.15"]
[EventType "team-tourn"]
[EventCountry "GER"]
[SourceTitle "playchess.com"]
[Source "ChessBase"]
[SourceQuality "1"]
[WhiteTeam "Croatia"]
[BlackTeam "Switzerland"]
[WhiteTeamCountry "CRO"]
[BlackTeamCountry "SUI"]
[TimeControl "40/5400+30:1800+30"]

{[%evp 9,96,15,20,12,64,67,70,59,66,57,59,50,38,34,54,51,56,52,47,43,44,16,55,46,38,46,47,61,65,42,35,38,53,37,33,30,31,41,31,29,35,37,142,142,141,127,149,145,150,155,171,150,159,150,170,120,134,135,123,133,118,127,135,135,213,66,8,8,8,8,169,169,169,169,169,0,0,0,0,0,0,0,0,0,0,0,0,0,0]} 1. d4 {[%emt 0:00:11]} Nf6 {[%emt 0:00:06]} 2. c4 {[%emt 0:00:21]} e6 {[%emt 0:00:07]} 3. Nf3 {[%emt 0:00:18]} b6 {[%emt 0:00:17]} 4. a3 {[%emt 0:00:08]} Ba6 {[%emt 0:00:15]} 5. Qb3 {[%emt 0:00:11]} d5 {[%emt 0:03:50]} 6. cxd5 {[%emt 0:00:20]} Nxd5 {[%emt 0:07:02]} (6... Qxd5 $11 7. Qxd5 exd5) 7. e4 $14 {[%emt 0:03:44] And now Bxa6 would win.} Bxf1 {[%emt 0:00:30]} 8. Kxf1 {[%emt 0:01:15] White is slightly better.} Nf6 {[%emt 0:00:52]} 9. Nc3 {[%emt 0:02:44]} Be7 {[%emt 0:08:35]} 10. g3 {[%emt 0:06:47]} O-O {[%emt 0:03:47]} 11. Kg2 {[%emt 0:00:11]} c6 {[%emt 0:17:00]} 12. Bf4 {[%emt 0:14:15]} Nbd7 {[%emt 0:03:43]} 13. Rad1 {[%emt 0:03:35]} Qc8 {[%emt 0:03:22]} 14. h4 {[%emt 0:11:21]} h6 {[%emt 0:06:43]} 15. Qc2 {[%emt 0:12:36]} Re8 {[%emt 0:07:55]} 16. Qd2 {[%emt 0:04:14][%cal Of4h6]} Bf8 {[%emt 0:00:59]} 17. e5 {[%emt 0:03:50]} Nd5 {[%emt 0:00:20]} 18. g4 {[%emt 0:00:59]} c5 {[%emt 0:06:59]} 19. g5 {[%emt 0:11:30]} h5 $1 {[%emt 0:17:35] [#]} 20. g6 $1 $36 {[%emt 0:02:24][%mdl 2048] Black is under pressure.} fxg6 {[%emt 0:00:13]} 21. Nxd5 {[%emt 0:01:15]} exd5 {[%emt 0:00:01]} 22. dxc5 {[%emt 0:00:31]} Nxc5 {[%emt 0:01:12]} 23. Qxd5+ {[%emt 0:00:23]} Qe6 {[%emt 0:01:25]} 24. Ng5 {[%emt 0:05:15]} Qxd5+ {[%emt 0:00:04]} 25. Rxd5 {[%emt 0:00:04]} Ne6 {[%emt 0:01:35]} (25... Rac8 $14) 26. Nxe6 $16 {[%emt 0:01:32]} Rxe6 {[%emt 0:00:00]} 27. Rc1 $1 {[%emt 0:01:53] Repels Rc8} Be7 {[%emt 0:03:12]} 28. Rc7 {[%emt 0:01:48]} a5 {[%emt 0:02:44]} 29. Rdd7 {[%emt 0:01:03]} Bf8 {[%emt 0:00:52]} 30. Kf3 {[%emt 0:02:46]} Rae8 {[%emt 0:00:16]} 31. a4 {[%emt 0:00:39] White has more active pieces.} R8e7 {[%emt 0:01:21]} 32. Rxe7 {[%emt 0:00:34]} (32. Ke4 $18) 32... Bxe7 $18 {[%emt 0:00:10][%mdl 4096] Endgame. KRB-KRB} 33. Bg3 {[%emt 0:05:07]} g5 {[%emt 0:00:10]} 34. hxg5 {[%emt 0:00:19]} Bxg5 {[%emt 0:00:07]} 35. Ke4 {[%emt 0:00:14]} h4 {[%emt 0:01:31] [#]} 36. Bh2 {[%emt 0:00:08]} Re7 {[%emt 0:01:35]} (36... Bd8 $16 {is a better defense.} 37. Kf5 Re8) 37. Rxe7 {[%emt 0:01:57]} ({White has to play} 37. Rc8+ $18 Kh7 38. Kf5 (38. f4 Bh6 $18)) 37... Bxe7 {[%emt 0:00:01] KB-KB} 38. Kf5 {[%emt 0:01:30]} Bc5 $1 {[%emt 0:00:37]} 39. f4 {[%emt 0:01:24] Kg4 is the strong threat.} Kf7 $2 {[%emt 0:00:49] [#]} (39... Bf2 $1 $11 {and Black stays safe.} 40. Ke6 Bc5) 40. Kg4 $1 {[%emt 0:00:29]} Bf2 {[%emt 0:01:22]} 41. f5 {[%emt 0:04:41]} g6 {[%emt 0:21:06] ...gxf5+ would now be deadly.} 42. f6 {[%emt 0:04:23]} (42. e6+ $18 Ke7 43. fxg6 Kxe6 44. Be5) 42... Ke6 $11 {[%emt 0:01:48] The position is equal.} 43. Kg5 {[%emt 0:03:59]} Kf7 {[%emt 0:01:50]} ({Avoid the trap} 43... Bg3 $2 44. Kxg6 (44. Bxg3 $2 hxg3 45. Kh6 Kf7 $19) 44... Bxh2 45. f7 $18) 44. Kg4 {[%emt 0:00:40] Dodges Bg3} Ke6 {[%emt 0:00:09]} 45. Bf4 {[%emt 0:03:42]} Kf7 {[%emt 0:01:32]} 46. b3 {[%emt 0:02:37]} Ke6 {[%emt 0:00:56]} 47. Bg5 {[%emt 0:08:12]} Bg3 {[%emt 0:01:09]} 48. Bf4 {[%emt 0:01:25]} Bf2 {[%emt 0:00:02] Weighted Error Value: White=0.13 (very precise) /Black=0.15 (very precise) .  Loses game:     	---       	Black=1      Missed win:     	White=1     	---        Mistake:       	White=2     	Black=3      Inaccurate:     	White=1     	Black=1      OK:         	White=20    	Black=19     Best:        	White=3     	Black=3      Strong:       	White=2     	Black=2} 1/2-1/2

[Event "Mitropa Cup Women 2024"]
[Site "Apolda"]
[Date "2024.02.15"]
[Round "1.10"]
[White "Georgescu, Lena"]
[Black "Medic, Mirjana"]
[Result "1/2-1/2"]
[ECO "C13"]
[WhiteElo "2268"]
[BlackElo "2151"]
[Annotator "NA RC"]
[PlyCount "89"]
[EventDate "2024.02.15"]
[EventType "team-tourn"]
[EventCountry "GER"]
[SourceTitle "playchess.com"]
[Source "ChessBase"]
[SourceQuality "1"]
[WhiteTeam "Switzerland"]
[BlackTeam "Croatia"]
[WhiteTeamCountry "SUI"]
[BlackTeamCountry "CRO"]
[TimeControl "40/5400+30:1800+30"]

1. e4 {[%emt 0:00:04]} e6 {[%emt 0:00:07]} 2. d4 {[%emt 0:00:04]} d5 {[%emt 0:00:05]} 3. Nc3 {[%emt 0:00:04]} Nf6 {[%emt 0:00:27]} 4. Bg5 {[%emt 0:00:04]} dxe4 {[%emt 0:00:23]} 5. Nxe4 {[%emt 0:00:04]} Be7 {[%emt 0:00:12]} 6. Bxf6 {[%emt 0:00:04]} gxf6 {[%emt 0:00:07]} 7. Nc3 {[%emt 0:00:04]} f5 {[%emt 0:02:06]} 8. Qd2 {[%emt 0:02:31]} a6 {[%emt 0:01:25]} 9. g3 {[%emt 0:01:45]} Qd6 {[%emt 0:13:07]} 10. Bg2 {[%emt 0:08:29]} Nd7 {[%emt 0:05:49]} 11. O-O-O {[%emt 0:13:09]} Nb6 {[%emt 0:07:16]} 12. Qe2 {[%emt 0:06:09]} Bd7 {[%emt 0:18:53]} 13. Nf3 {[%emt 0:06:36]} Bc6 {[%emt 0:08:34]} 14. Rhg1 {[%emt 0:05:45]} Nd5 {[%emt 0:02:39]} 15. Nxd5 {[%emt 0:03:08]} Bxd5 {[%emt 0:00:06]} 16. Kb1 {[%emt 0:05:33]} O-O-O {[%emt 0:06:05]} 17. Ne5 {[%emt 0:01:40]} Bxg2 {[%emt 0:00:54]} 18. Rxg2 {[%emt 0:08:51]} Rhf8 {[%emt 0:02:02]} 19. Rgg1 {[%emt 0:01:38]} Qb6 {[%emt 0:03:55]} 20. c3 {[%emt 0:02:11]} Rd5 {[%emt 0:10:43]} 21. h3 {[%emt 0:04:50]} Bf6 {[%emt 0:04:03]} 22. Nd3 {[%emt 0:01:25]} a5 {[%emt 0:02:14]} 23. g4 {[%emt 0:01:35]} fxg4 {[%emt 0:04:09]} 24. hxg4 {[%emt 0:00:10]} Bg7 {[%emt 0:00:28]} 25. Rh1 {[%emt 0:00:56]} h6 {[%emt 0:00:17]} 26. Nf4 {[%emt 0:05:08]} Rg5 {[%emt 0:00:22]} 27. Nh5 {[%emt 0:01:51]} Bh8 {[%emt 0:00:32]} 28. Ng3 {[%emt 0:01:17]} Rg6 {[%emt 0:01:07]} 29. Qf3 {[%emt 0:05:03]} Bf6 {[%emt 0:01:51]} 30. Nh5 {[%emt 0:02:11]} Be7 {[%emt 0:00:41]} 31. Rhe1 {[%emt 0:04:34]} a4 {[%emt 0:00:48]} 32. Nf4 {[%emt 0:01:29]} Rf6 {[%emt 0:00:40]} 33. Qe3 {[%emt 0:01:19]} Bd6 {[%emt 0:00:51]} 34. Nd3 {[%emt 0:00:35]} Rg8 {[%emt 0:01:07]} 35. f3 {[%emt 0:00:32]} Qc6 {[%emt 0:00:26]} 36. Rf1 {[%emt 0:01:59]} a3 {[%emt 0:00:04]} 37. Ne5 {[%emt 0:01:37]} Qa6 {[%emt 0:02:25]} 38. b3 {[%emt 0:01:03]} Rd8 {[%emt 0:00:54]} 39. Rh1 {[%emt 0:01:38]} Bf8 {[%emt 0:00:14]} 40. Rhe1 {[%emt 0:02:13]} Bd6 {[%emt 0:00:59]} 41. Rh1 {[%emt 0:09:32]} Bf8 {[%emt 0:00:13]} 42. f4 {[%emt 0:02:49]} Bd6 {[%emt 0:00:43]} 43. c4 {[%emt 0:05:05]} Rg8 {[%emt 0:04:13]} 44. Rdf1 {[%emt 0:03:53]} Qa5 {[%emt 0:07:20]} 45. Kc2 {[%emt 0:04:31]} 1/2-1/2

[Event "Mitropa Cup Women 2024"]
[Site "Apolda"]
[Date "2024.02.15"]
[Round "1.11"]
[White "Berke, Ana"]
[Black "Hryzlova, Sofiia"]
[Result "0-1"]
[ECO "C07"]
[WhiteElo "2092"]
[BlackElo "2196"]
[Annotator "NA RC"]
[PlyCount "92"]
[EventDate "2024.02.15"]
[EventType "team-tourn"]
[EventCountry "GER"]
[SourceTitle "playchess.com"]
[Source "ChessBase"]
[SourceQuality "1"]
[WhiteTeam "Croatia"]
[BlackTeam "Switzerland"]
[WhiteTeamCountry "CRO"]
[BlackTeamCountry "SUI"]
[TimeControl "40/5400+30:1800+30"]

1. e4 {[%emt 0:00:05]} e6 {[%emt 0:00:07]} 2. d4 {[%emt 0:00:31]} d5 {[%emt 0:00:06]} 3. Nd2 {[%emt 0:00:09]} c5 {[%emt 0:00:07]} 4. Ngf3 {[%emt 0:00:20]} cxd4 {[%emt 0:00:28]} 5. exd5 {[%emt 0:02:10]} Qxd5 {[%emt 0:00:13]} 6. Bc4 {[%emt 0:00:36]} Qd6 {[%emt 0:00:07]} 7. O-O {[%emt 0:01:21]} Nf6 {[%emt 0:01:17]} 8. Nb3 {[%emt 0:01:36]} Nc6 {[%emt 0:00:18]} 9. Nbxd4 {[%emt 0:01:20]} Nxd4 {[%emt 0:00:51]} 10. Qxd4 {[%emt 0:00:59]} Qxd4 {[%emt 0:00:53]} 11. Nxd4 {[%emt 0:00:07]} Bc5 {[%emt 0:00:08]} 12. Nf3 {[%emt 0:06:50]} O-O {[%emt 0:05:33]} 13. Bf4 {[%emt 0:02:06]} b6 {[%emt 0:03:24]} 14. Rad1 {[%emt 0:10:48]} Bb7 {[%emt 0:05:24]} 15. Be2 {[%emt 0:02:13]} Rfd8 {[%emt 0:10:12]} 16. Ne5 {[%emt 0:02:36]} Be4 {[%emt 0:09:48]} 17. Nd3 {[%emt 0:05:55]} Be7 {[%emt 0:09:26]} 18. c4 {[%emt 0:06:36]} Ne8 {[%emt 0:07:10]} 19. f3 {[%emt 0:07:38]} Bb7 {[%emt 0:00:26]} 20. b3 {[%emt 0:13:17]} f6 {[%emt 0:01:19]} 21. Be3 {[%emt 0:02:14]} Rac8 {[%emt 0:05:44]} 22. Rd2 {[%emt 0:05:30]} Nd6 {[%emt 0:02:31]} 23. g4 {[%emt 0:02:29]} Nf7 {[%emt 0:07:24]} 24. Rfd1 {[%emt 0:01:27]} e5 {[%emt 0:02:17]} 25. Nf2 {[%emt 0:03:38]} Bc6 {[%emt 0:06:25]} 26. Kf1 {[%emt 0:06:07]} g6 {[%emt 0:01:00]} 27. Rxd8+ {[%emt 0:02:10]} Nxd8 {[%emt 0:00:44]} 28. Ne4 {[%emt 0:00:28]} Ne6 {[%emt 0:01:51]} 29. Nc3 {[%emt 0:02:40]} Kf7 {[%emt 0:02:39]} 30. Nd5 {[%emt 0:01:31]} Bc5 {[%emt 0:00:31]} 31. b4 {[%emt 0:07:54]} Bxe3 {[%emt 0:03:35]} 32. Nxe3 {[%emt 0:00:05]} Nd4 {[%emt 0:00:23]} 33. Kf2 {[%emt 0:00:07]} f5 {[%emt 0:01:33]} 34. c5 {[%emt 0:01:05]} bxc5 {[%emt 0:02:52]} 35. bxc5 {[%emt 0:02:19]} Nxe2 {[%emt 0:00:22]} 36. Kxe2 {[%emt 0:00:34]} Bb5+ {[%emt 0:00:23]} 37. Kf2 {[%emt 0:00:42]} f4 {[%emt 0:00:11]} 38. Nd5 {[%emt 0:00:36]} Rxc5 {[%emt 0:00:19]} 39. Nb4 {[%emt 0:00:20]} Ke6 {[%emt 0:02:56]} 40. h4 {[%emt 0:00:13]} a5 {[%emt 0:00:22]} 41. Nd3 {[%emt 0:03:49]} Rc2+ {[%emt 0:01:58]} 42. Kg1 {[%emt 0:00:21]} Bxd3 {[%emt 0:03:47]} 43. Rxd3 {[%emt 0:00:06]} Rxa2 {[%emt 0:00:05]} 44. Rd8 {[%emt 0:05:41]} a4 {[%emt 0:00:34]} 45. Rh8 {[%emt 0:03:06]} a3 {[%emt 0:00:13]} 46. Rxh7 {[%emt 0:00:08]} Rb2 {[%emt 0:00:08]} 0-1

[Event "Mitropa Cup Women 2024"]
[Site "Apolda"]
[Date "2024.02.15"]
[Round "1.12"]
[White "Manko, Mariia"]
[Black "Vujnovic, Patricija"]
[Result "1-0"]
[ECO "E11"]
[WhiteElo "2128"]
[BlackElo "2104"]
[Annotator "NA RC"]
[PlyCount "121"]
[EventDate "2024.02.15"]
[EventType "team-tourn"]
[EventCountry "GER"]
[SourceTitle "playchess.com"]
[Source "ChessBase"]
[SourceQuality "1"]
[WhiteTeam "Switzerland"]
[BlackTeam "Croatia"]
[WhiteTeamCountry "SUI"]
[BlackTeamCountry "CRO"]
[TimeControl "40/5400+30:1800+30"]

1. d4 {[%emt 0:00:05]} d5 {[%emt 0:00:17]} 2. c4 {[%emt 0:00:06]} e6 {[%emt 0:00:07]} 3. Nf3 {[%emt 0:00:13]} Nf6 {[%emt 0:00:24]} 4. g3 {[%emt 0:00:08]} Bb4+ {[%emt 0:00:09]} 5. Bd2 {[%emt 0:00:09]} a5 {[%emt 0:00:36]} 6. Bg2 {[%emt 0:03:58]} dxc4 {[%emt 0:01:21]} 7. O-O {[%emt 0:04:19]} Nc6 {[%emt 0:05:00]} 8. a3 {[%emt 0:15:38]} Be7 {[%emt 0:02:57]} 9. Qa4 {[%emt 0:02:16]} O-O {[%emt 0:05:15]} 10. Qxc4 {[%emt 0:00:55]} Qd5 {[%emt 0:01:04]} 11. Qd3 {[%emt 0:06:04]} Qf5 {[%emt 0:08:45]} 12. Qxf5 {[%emt 0:04:38]} exf5 {[%emt 0:00:05]} 13. Nc3 {[%emt 0:00:47]} Be6 {[%emt 0:03:42]} 14. Bf4 {[%emt 0:07:34]} Nd5 {[%emt 0:07:04]} 15. Rac1 {[%emt 0:13:24]} Rfc8 {[%emt 0:27:57]} 16. Nd2 {[%emt 0:09:48]} Nxf4 {[%emt 0:13:50]} 17. gxf4 {[%emt 0:00:18]} Nd8 {[%emt 0:00:48]} 18. d5 {[%emt 0:08:52]} Bd7 {[%emt 0:00:03]} 19. Nc4 {[%emt 0:00:30]} Bd6 {[%emt 0:03:44]} 20. Ne5 {[%emt 0:03:09]} Be8 {[%emt 0:00:53]} 21. Bh3 {[%emt 0:00:51]} f6 {[%emt 0:02:15]} 22. Nd3 {[%emt 0:00:28]} g6 {[%emt 0:01:04]} 23. e4 {[%emt 0:00:47]} fxe4 {[%emt 0:01:19]} 24. Bxc8 {[%emt 0:11:43]} exd3 {[%emt 0:00:04]} 25. Rce1 {[%emt 0:00:14]} Kf8 {[%emt 0:04:57]} 26. Bh3 {[%emt 0:00:20]} Bxf4 {[%emt 0:01:03]} 27. Re4 {[%emt 0:01:29]} Be5 {[%emt 0:02:23]} 28. Rd1 {[%emt 0:01:50]} Nf7 {[%emt 0:03:26]} 29. Rxd3 {[%emt 0:00:44]} Ng5 {[%emt 0:01:28]} 30. Re1 {[%emt 0:00:43]} Rd8 {[%emt 0:01:00]} 31. Bf1 {[%emt 0:00:53]} Bd7 {[%emt 0:01:11]} 32. h4 {[%emt 0:01:02]} Nf7 {[%emt 0:00:20]} 33. Bh3 {[%emt 0:00:24]} f5 {[%emt 0:00:40]} 34. Ne2 {[%emt 0:01:09]} Bf6 {[%emt 0:01:00]} 35. Nd4 {[%emt 0:01:07]} Bxh4 {[%emt 0:00:36]} 36. Rc3 {[%emt 0:00:59]} Bf6 {[%emt 0:00:36]} 37. Ne6+ {[%emt 0:00:12]} Bxe6 {[%emt 0:00:03]} 38. dxe6 {[%emt 0:00:08]} Ng5 {[%emt 0:00:20]} 39. Bg2 {[%emt 0:00:57]} c6 {[%emt 0:01:25]} 40. Rb3 {[%emt 0:00:52]} Rd6 {[%emt 0:00:38]} 41. e7+ {[%emt 0:07:49]} Bxe7 {[%emt 0:02:03]} 42. Rxb7 {[%emt 0:02:16]} Bf6 {[%emt 0:07:15]} 43. Rc1 {[%emt 0:09:54]} f4 {[%emt 0:21:49]} 44. Rxc6 {[%emt 0:06:02]} Rd1+ {[%emt 0:00:37]} 45. Kh2 {[%emt 0:00:09]} Bd8 {[%emt 0:00:18]} 46. Rc4 {[%emt 0:00:54]} Ne6 {[%emt 0:00:52]} 47. Re4 {[%emt 0:01:28]} Rd6 {[%emt 0:00:33]} 48. Bh3 {[%emt 0:00:36]} Ng5 {[%emt 0:00:32]} 49. Rxf4+ {[%emt 0:01:05]} Bf6 {[%emt 0:00:11]} 50. Rc4 {[%emt 0:00:38]} Rd2 {[%emt 0:00:39]} 51. Rc8+ {[%emt 0:00:24]} Bd8 {[%emt 0:00:09]} 52. Kg2 {[%emt 0:01:11]} Ke8 {[%emt 0:00:21]} 53. Rc5 {[%emt 0:02:08]} Rxf2+ {[%emt 0:01:13]} 54. Kxf2 {[%emt 0:00:07]} Ne4+ {[%emt 0:00:03]} 55. Ke3 {[%emt 0:00:18]} Nxc5 {[%emt 0:00:04]} 56. Rxh7 {[%emt 0:00:16]} Bf6 {[%emt 0:00:49]} 57. b4 {[%emt 0:00:37]} axb4 {[%emt 0:00:32]} 58. axb4 {[%emt 0:00:05]} Nb3 {[%emt 0:00:57]} 59. b5 {[%emt 0:00:16]} Kd8 {[%emt 0:00:40]} 60. Ke4 {[%emt 0:00:29]} Nd4 {[%emt 0:00:29]} 61. Rd7+ {[%emt 0:01:17]} 1-0

[Event "Mitropa Cup Women 2024"]
[Site "Apolda"]
[Date "2024.02.15"]
[Round "1.13"]
[White "Iglesias, Yosha"]
[Black "Polterauer, Chiara"]
[Result "1-0"]
[ECO "D02"]
[WhiteElo "2260"]
[BlackElo "2189"]
[Annotator "NA RC"]
[PlyCount "87"]
[EventDate "2024.02.15"]
[EventType "team-tourn"]
[EventCountry "GER"]
[SourceTitle "playchess.com"]
[Source "ChessBase"]
[SourceQuality "1"]
[WhiteTeam "France"]
[BlackTeam "Austria"]
[WhiteTeamCountry "FRA"]
[BlackTeamCountry "AUT"]
[TimeControl "40/5400+30:1800+30"]

1. d4 {[%emt 0:00:04]} Nf6 {[%emt 0:00:05]} 2. Nf3 {[%emt 0:00:07]} g6 {[%emt 0:00:10]} 3. Bf4 {[%emt 0:00:07]} Bg7 {[%emt 0:00:17]} 4. e3 {[%emt 0:00:19]} O-O {[%emt 0:00:55]} 5. Be2 {[%emt 0:00:06]} d5 {[%emt 0:00:50]} 6. h3 {[%emt 0:01:25]} b6 {[%emt 0:01:07]} 7. c3 {[%emt 0:01:09]} Bb7 {[%emt 0:01:17]} 8. O-O {[%emt 0:00:40]} Nbd7 {[%emt 0:01:31]} 9. a4 {[%emt 0:12:42]} a5 {[%emt 0:03:56]} 10. Qb3 {[%emt 0:06:26]} c5 {[%emt 0:09:18]} 11. Bb5 {[%emt 0:03:36]} c4 {[%emt 0:07:45]} 12. Qa2 {[%emt 0:03:32]} Ne4 {[%emt 0:07:15]} 13. b3 {[%emt 0:01:29]} cxb3 {[%emt 0:02:08]} 14. Qxb3 {[%emt 0:00:06]} Ndf6 {[%emt 0:00:35]} 15. Rc1 {[%emt 0:08:05]} Nd6 {[%emt 0:02:51]} 16. Bf1 {[%emt 0:01:10]} Ba6 {[%emt 0:09:59]} 17. Bxa6 {[%emt 0:00:38]} Rxa6 {[%emt 0:00:04]} 18. Na3 {[%emt 0:00:11]} e6 {[%emt 0:07:20]} 19. Rab1 {[%emt 0:01:17]} Qe7 {[%emt 0:02:47]} 20. Bxd6 {[%emt 0:04:13]} Qxd6 {[%emt 0:00:08]} 21. c4 {[%emt 0:00:09]} Rc8 {[%emt 0:10:32]} 22. cxd5 {[%emt 0:03:22]} Rxc1+ {[%emt 0:00:10]} 23. Rxc1 {[%emt 0:00:05]} Nxd5 {[%emt 0:01:36]} 24. Rc8+ {[%emt 0:03:58]} Bf8 {[%emt 0:00:08]} 25. Nb5 {[%emt 0:05:44]} Qd7 {[%emt 0:06:55]} 26. Qc4 {[%emt 0:01:20]} Kg7 {[%emt 0:00:26]} 27. Ne5 {[%emt 0:07:32]} Qb7 {[%emt 0:01:40]} 28. e4 {[%emt 0:08:32]} Ne7 {[%emt 0:01:28]} 29. Nd6 {[%emt 0:02:07]} b5 {[%emt 0:00:32]} 30. Ne8+ {[%emt 0:01:25]} Kg8 {[%emt 0:00:49]} 31. axb5 {[%emt 0:01:37]} Qxc8 {[%emt 0:14:55]} 32. Qxc8 {[%emt 0:00:50]} Nxc8 {[%emt 0:00:04]} 33. bxa6 {[%emt 0:00:15]} a4 {[%emt 0:01:30]} 34. Nd3 {[%emt 0:00:26]} Bh6 {[%emt 0:00:58]} 35. Nd6 {[%emt 0:03:51]} a3 {[%emt 0:03:12]} 36. Nb4 {[%emt 0:01:41]} Na7 {[%emt 0:02:04]} 37. Nc4 {[%emt 0:04:08]} Bc1 {[%emt 0:00:12]} 38. d5 {[%emt 0:02:20]} exd5 {[%emt 0:00:35]} 39. exd5 {[%emt 0:00:07]} Kf8 {[%emt 0:00:31]} 40. Ne5 {[%emt 0:01:20]} Bd2 {[%emt 0:01:06]} 41. Na2 {[%emt 0:31:15]} Ba5 {[%emt 0:12:45]} 42. Nc4 {[%emt 0:00:00]} Bd8 {[%emt 0:00:16]} 43. Nxa3 {[%emt 0:00:00]} Ke7 {[%emt 0:00:11]} 44. Nc3 {[%emt 0:00:00]} 1-0

[Event "Mitropa Cup Women 2024"]
[Site "Apolda"]
[Date "2024.02.15"]
[Round "1.14"]
[White "Hapala, Elisabeth"]
[Black "Schippke, Manon"]
[Result "1/2-1/2"]
[ECO "B33"]
[WhiteElo "2001"]
[BlackElo "2162"]
[Annotator "NA RC"]
[PlyCount "90"]
[EventDate "2024.02.15"]
[EventType "team-tourn"]
[EventCountry "GER"]
[SourceTitle "playchess.com"]
[Source "ChessBase"]
[SourceQuality "1"]
[WhiteTeam "Austria"]
[BlackTeam "France"]
[WhiteTeamCountry "AUT"]
[BlackTeamCountry "FRA"]
[TimeControl "40/5400+30:1800+30"]

1. e4 {[%emt 0:00:01]} c5 {[%emt 0:00:13]} 2. Nf3 {[%emt 0:00:04]} Nc6 {[%emt 0:00:03]} 3. d4 {[%emt 0:00:05]} cxd4 {[%emt 0:00:04]} 4. Nxd4 {[%emt 0:00:03]} Nf6 {[%emt 0:00:20]} 5. Nc3 {[%emt 0:00:05]} e5 {[%emt 0:00:03]} 6. Ndb5 {[%emt 0:00:06]} d6 {[%emt 0:00:03]} 7. Bg5 {[%emt 0:00:14]} a6 {[%emt 0:00:16]} 8. Na3 {[%emt 0:00:12]} b5 {[%emt 0:00:05]} 9. Nd5 {[%emt 0:00:05]} Be7 {[%emt 0:00:04]} 10. Bxf6 {[%emt 0:00:06]} Bxf6 {[%emt 0:00:04]} 11. c3 {[%emt 0:00:12]} Bg5 {[%emt 0:00:26]} 12. Nc2 {[%emt 0:00:24]} Rb8 {[%emt 0:00:04]} 13. a4 {[%emt 0:00:53]} bxa4 {[%emt 0:00:16]} 14. Ncb4 {[%emt 0:00:06]} Nxb4 {[%emt 0:00:05]} 15. cxb4 {[%emt 0:00:27]} Bd7 {[%emt 0:00:25]} 16. Bxa6 {[%emt 0:02:38]} O-O {[%emt 0:00:23]} 17. O-O {[%emt 0:19:51]} Bc6 {[%emt 0:01:42]} 18. Bc4 {[%emt 0:03:38]} Qd7 {[%emt 0:13:50]} 19. b3 {[%emt 0:07:23]} axb3 {[%emt 0:02:02]} 20. Qxb3 {[%emt 0:06:47]} Bd2 {[%emt 0:07:05]} 21. Rfb1 {[%emt 0:57:40]} Bxd5 {[%emt 0:20:33]} 22. Bxd5 {[%emt 0:00:00]} Bxb4 {[%emt 0:04:15]} 23. g3 {[%emt 0:00:00]} g6 {[%emt 0:04:54]} 24. Kg2 {[%emt 0:00:00]} Kg7 {[%emt 0:01:41]} 25. Qxb4 {[%emt 0:00:00]} Rxb4 {[%emt 0:00:06]} 26. Rxb4 {[%emt 0:00:00]} h5 {[%emt 0:13:22]} 27. Rb7 {[%emt 0:00:00]} Qc8 {[%emt 0:00:46]} 28. h4 {[%emt 0:00:00]} g5 {[%emt 0:02:27]} 29. hxg5 {[%emt 0:00:00]} h4 {[%emt 0:00:04]} 30. Raa7 {[%emt 0:00:35]} hxg3 {[%emt 0:10:24]} 31. Rxf7+ {[%emt 0:00:10]} Rxf7 {[%emt 0:00:02]} 32. Rxf7+ {[%emt 0:00:04]} Kg6 {[%emt 0:00:42]} 33. Kxg3 {[%emt 0:00:41]} Kxg5 {[%emt 0:01:17]} 34. Rf5+ {[%emt 0:00:22]} Kg6 {[%emt 0:00:13]} 35. Bf7+ {[%emt 0:00:57]} Kg7 {[%emt 0:00:05]} 36. Bd5 {[%emt 0:00:08]} Qc1 {[%emt 0:00:45]} 37. Kg2 {[%emt 0:00:56]} Qd1 {[%emt 0:00:12]} 38. Rf3 {[%emt 0:00:59]} Kg6 {[%emt 0:00:49]} 39. Bf7+ {[%emt 0:01:52]} Kg7 {[%emt 0:02:02]} 40. Bd5 {[%emt 0:00:06]} Qd4 {[%emt 0:00:33]} 41. Rf5 {[%emt 0:31:21]} Qd2 {[%emt 0:31:24]} 42. Kg3 {[%emt 0:01:12]} Kg6 {[%emt 0:00:12]} 43. Bf7+ {[%emt 0:00:09]} Kg7 {[%emt 0:00:05]} 44. Bd5 {[%emt 0:00:04]} Kg6 {[%emt 0:00:44]} 45. Bf7+ {[%emt 0:00:06]} Kg7 {[%emt 0:00:12]} 1/2-1/2